fUST/lending_fUST_20251226
["ID","MTS","AMOUNT","RATE_DAILY","PERIOD"]
[399837359,1766723440663,-3e-08,0.00013,30]
[399837361,1766723440677,-5638.4661135,0.00013,30]
[399837410,1766723441175,-3053.25107987,0.00013,30]
[399837428,1766723443193,-12100.0,0.00013,30]
[399837429,1766723443250,-757.46778656,0.00013,30]
[399837430,1766723446002,-708.95109972,0.00013,30]
[399837431,1766723446015,-1839.42684341,0.00013,30]
[399837432,1766723516209,162.34,6.617e-05,2]
[399837433,1766723516598,243.51,7.169e-05,2]
[399837434,1766723517755,324.68,7.72e-05,2]
[399837435,1766723592927,215.62,6.832e-05,2]
[399837436,1766723593355,287.49,7.358e-05,2]
[399837437,1766723603662,5011.384777,0.00012,30]
[399837438,1766723607144,-359.37,7.883e-05,2]
[399837439,1766723668626,182.69,6.871e-05,2]
[399837440,1766723669128,243.58,7.4e-05,2]
[399837441,1766723670470,-304.48,7.928e-05,2]
[399837442,1766723670495,-811.75042723,8.242e-05,2]
[399837443,1766723743132,154.79,6.841e-05,2]
[399837444,1766723743528,206.38,7.367e-05,2]
[399837445,1766723745991,-257.98,7.893e-05,2]
[399837446,1766723792274,-1000.0,8.242e-05,2]
[399837447,1766723793851,-1000.0,8.242e-05,2]
[399837448,1766723794994,-338.14689143,8.242e-05,2]
[399837449,1766723813328,-1000.0,8.325e-05,2]
[399837450,1766723816063,174.86,7.088e-05,2]
[399837451,1766723816457,218.58,7.594e-05,2]
[399837452,1766723817824,-262.29,8.1e-05,2]
[399837453,1766723817848,-737.71,8.325e-05,2]
[399837454,1766723822095,-1000.0,8.242e-05,2]
[399837455,1766723824712,-614.97530184,8.242e-05,2]
[399837456,1766723824737,-385.02469816,8.325e-05,2]
[399837457,1766723826218,-1000.0,8.325e-05,2]
[399837458,1766723832334,-1000.0,8.325e-05,2]
[399837459,1766723838513,-500.0,8.325e-05,2]
[399837460,1766723880519,191.42971168,7.961e-05,2]
[399837461,1766723887279,176.85,7.59e-05,2]
[399837462,1766723889859,-212.22,8.096e-05,2]
[399837463,1766723899852,-1000.0,8.52e-05,2]
[399837464,1766723901663,-1000.0,8.52e-05,2]
[399837465,1766723906017,-1000.0,8.52e-05,2]
[399837466,1766723910396,-1000.0,8.52e-05,2]
[399837467,1766723958346,152.09,7.617e-05,2]
[399837468,1766723968809,-182.51,8.125e-05,2]
[399837471,1766724030347,-159.44,8.147e-05,2]
[399837482,1766724502580,-5000.0,8.351e-05,2]
[399837483,1766724505199,-5000.0,8.267e-05,2]
[399837484,1766724508324,-539.0,8.52e-05,2]
[399837485,1766724508353,-1200.0,9.16e-05,2]
[399837486,1766724508384,-1200.0,9.161e-05,2]
[399837487,1766724508414,-300.0,9.161e-05,2]
[399837488,1766724508443,-300.0,9.161e-05,2]
[399837489,1766724508474,-300.0,9.164e-05,2]
[399837490,1766724508504,-300.0,9.164e-05,2]
[399837491,1766724508536,-300.0,9.164e-05,2]
[399837492,1766724508566,-300.0,9.164e-05,2]
[399837493,1766724508596,-222.01,9.164e-05,2]
[399837494,1766724511674,-77.99,9.164e-05,2]
[399837495,1766724511705,-300.0,9.164e-05,2]
[399837496,1766724511735,-300.0,9.164e-05,2]
[399837497,1766724511765,-300.0,9.164e-05,2]
[399837498,1766724511795,-300.0,9.164e-05,2]
[399837499,1766724511825,-300.0,9.164e-05,2]
[399837500,1766724511854,-300.0,9.164e-05,2]
[399837501,1766724511884,-300.0,9.164e-05,2]
[399837502,1766724511914,-300.0,9.164e-05,2]
[399837503,1766724511945,-300.0,9.164e-05,2]
[399837504,1766724511974,-300.0,9.164e-05,2]
[399837505,1766724514529,-280.92810651,9.164e-05,2]
[399837506,1766724514569,-9330.11378698,9.164e-05,2]
[399837532,1766724632177,-171.8,8.775e-05,2]
[399837534,1766724632189,-628.66295975,9.072e-05,2]
[399837571,1766724638302,-4371.33704025,9.072e-05,2]
[399837572,1766724638314,-196.35,9.291e-05,2]
[399837573,1766724638326,-500.0,9.318e-05,2]
[399837574,1766724638338,-600.0,9.346e-05,2]
[399837575,1766724638349,-700.0,9.36e-05,2]
[399837576,1766724638361,-1200.0,9.615e-05,2]
[399837577,1766724638372,-1634.6264589,9.616e-05,2]
[399837578,1766724638383,-220.89,9.807e-05,2]
[399837579,1766724638394,-700.0,9.832e-05,2]
[399837580,1766724638405,-300.0,0.00010074,2]
[399837581,1766724638417,-1200.0,0.00010076,2]
[399837582,1766724638428,-300.0,0.00010277,2]
[399837583,1766724638439,-300.0,0.00010277,2]
[399837584,1766724638450,-300.0,0.00010277,2]
[399837585,1766724638461,-300.0,0.00010277,2]
[399837586,1766724638472,-300.0,0.00010277,2]
[399837587,1766724638484,-300.0,0.00010277,2]
[399837588,1766724638496,-300.0,0.00010277,2]
[399837589,1766724638507,-300.0,0.00010277,2]
[399837590,1766724638519,-300.0,0.00010277,2]
[399837591,1766724638898,-300.0,0.00010277,2]
[399837592,1766724638927,-300.0,0.00010277,2]
[399837593,1766724638940,-300.0,0.00010277,2]
[399837594,1766724638951,-300.0,0.00010277,2]
[399837595,1766724638963,-300.0,0.00010277,2]
[399837596,1766724638974,-300.0,0.00010277,2]
[399837597,1766724638987,-207.38033711,0.00010277,2]
[399837598,1766724638999,-720.0,0.00010281,2]
[399837599,1766724639010,-245.43,0.00010323,2]
[399837600,1766724639021,-700.0,0.0001042,2]
[399837601,1766724639031,-177.0,0.00010478,2]
[399837602,1766724639041,-1680.0,0.00010576,2]
[399837603,1766724639051,-420.0,0.00011081,2]
[399837604,1766724639062,-864.0,0.00011309,2]
[399837605,1766724639072,-700.0,0.00011352,2]
[399837606,1766724639083,-2351.0,0.00011634,2]
[399837607,1766724639093,-700.0,0.00011879,2]
[399837608,1766724639103,-2483.67448689,0.00012008,2]
[399837609,1766724639116,-541.086,0.00012008,2]
[399837610,1766724639128,-834.65882111,0.00012008,2]
[399837611,1766724639140,-504.3861945,0.00012008,2]
[399837612,1766724639152,-1325.553228,0.00012008,2]
[399837613,1766724639163,-191.62114139,0.00012188,2]
[399837614,1766724639172,-587.0,0.00012188,2]
[399837615,1766724639182,-1000.0,0.0001244,2]
[399837616,1766724639193,-204.0,0.00012478,2]
[399837617,1766724639203,-1320.0,0.00012797,2]
[399837618,1766724639214,-500.0,0.00012828,2]
[399837619,1766724639224,-361.27178686,0.00012899,2]
[399837620,1766724639234,-6526.63140745,0.000129,2]
[399837621,1766724639245,-500.0,0.00012999,2]
[399837622,1766724639255,-500.0,0.00012999,2]
[399837623,1766724639265,-326.83655009,0.00012999,2]
[399837624,1766724639278,-539.54623891,0.00012999,2]
[399837625,1766724639288,-500.0,0.00012999,2]
[399837626,1766724639297,-500.0,0.00012999,2]
[399837627,1766724639307,-500.0,0.00012999,2]
[399837628,1766724639318,-471.15470412,0.00012999,2]
[399837629,1766724639328,-71635.29219759,0.00013,30]
[399837630,1766724639344,-2935.13151207,0.00013173,2]
[399837631,1766724639355,-283.02611825,0.00013273,2]
[399837632,1766724639365,-500.72630519,0.00013273,2]
[399837633,1766724639375,-217.67691798,0.00013273,2]
[399837634,1766724639386,-500.31926671,0.00013273,2]
[399837635,1766724639396,-649.99280275,0.00013273,2]
[399837636,1766724639406,-500.92487866,0.00013273,2]
[399837637,1766724639415,-165.33394189,0.00013273,2]
[399837638,1766724639426,-498.91968071,0.00013273,2]
[399837639,1766724639436,-500.90610181,0.00013273,2]
[399837640,1766724639446,-501.42087893,0.00013273,2]
[399837641,1766724639456,-501.18059011,0.00013273,2]
[399837642,1766724639467,-501.02632081,0.00013273,2]
[399837643,1766724639477,-500.76943828,0.00013273,2]
[399837644,1766724639488,-500.67255836,0.00013273,2]
[399837645,1766724639498,-500.88761996,0.00013273,2]
[399837646,1766724639509,-503.07277736,0.00013273,2]
[399837647,1766724639519,-498.90150153,0.00013273,2]
[399837648,1766724639529,-502.53528973,0.00013273,2]
[399837649,1766724639539,-501.71144148,0.00013273,2]
[399837650,1766724639549,-501.67789325,0.00013273,2]
[399837651,1766724639560,-500.29636723,0.00013273,2]
[399837652,1766724639570,-500.45270399,0.00013273,2]
[399837653,1766724639580,-500.22296233,0.00013273,2]
[399837654,1766724639590,-501.40579047,0.00013273,2]
[399837655,1766724639600,-500.0,0.00013273,2]
[399837656,1766724639611,-500.92466632,0.00013273,2]
[399837657,1766724639621,-500.39540392,0.00013273,2]
[399837658,1766724639631,-500.87351952,0.00013273,2]
[399837659,1766724639642,-500.0,0.00013273,2]
[399837660,1766724639652,-501.65399392,0.00013273,2]
[399837661,1766724639662,-500.17651465,0.00013273,2]
[399837662,1766724639672,-500.30812783,0.00013273,2]
[399837663,1766724639682,-216.79727287,0.00013273,2]
[399837664,1766724639693,-500.19007062,0.00013273,2]
[399837665,1766724639703,-502.26154321,0.00013273,2]
[399837667,1766724639712,-502.86119548,0.00013273,2]
[399837668,1766724639722,-501.49583589,0.00013273,2]
[399837669,1766724639732,-185.22407591,0.00013273,2]
[399837670,1766724639742,-501.87527948,0.00013273,2]
[399837671,1766724639753,-501.91551651,0.00013273,2]
[399837672,1766724639763,-500.19564209,0.00013273,2]
[399837673,1766724639773,-268.3937345,0.00013273,2]
[399837674,1766724639783,-204.85227759,0.00013273,2]
[399837675,1766724639793,-500.34612372,0.00013273,2]
[399837676,1766724639803,-326.0485994,0.00013273,2]
[399837677,1766724639812,-171.3895649,0.00013273,2]
[399837679,1766724639822,-500.81469445,0.00013273,2]
[399837680,1766724639836,-501.47955833,0.00013273,2]
[399837681,1766724639846,-500.90623344,0.00013273,2]
[399837682,1766724639856,-502.44795415,0.00013273,2]
[399837683,1766724639866,-500.59340868,0.00013273,2]
[399837684,1766724639876,-504.73649192,0.00013273,2]
[399837685,1766724639885,-500.20081422,0.00013273,2]
[399837686,1766724639895,-500.15596163,0.00013273,2]
[399837687,1766724639905,-500.52768484,0.00013273,2]
[399837688,1766724639915,-500.30204497,0.00013273,2]
[399837689,1766724639925,-210.42963161,0.00013273,2]
[399837690,1766724639936,-502.76168103,0.00013273,2]
[399837691,1766724639945,-159.13586454,0.00013273,2]
[399837692,1766724639955,-501.02212735,0.00013273,2]
[399837693,1766724639965,-501.52238004,0.00013273,2]
[399837694,1766724639975,-504.37208158,0.00013273,2]
[399837696,1766724639988,-263.8858414,0.00013273,2]
[399837698,1766724639999,-501.41897014,0.00013273,2]
[399837700,1766724640009,-161.64994051,0.00013273,2]
[399837702,1766724640018,-503.376579,0.00013273,2]
[399837704,1766724640029,-313.23827466,0.00013273,2]
[399837706,1766724640039,-501.13540708,0.00013273,2]
[399837708,1766724640048,-501.04856669,0.00013273,2]
[399837710,1766724640059,-500.27898398,0.00013273,2]
[399837712,1766724640069,-502.37810912,0.00013273,2]
[399837714,1766724640079,-502.11456831,0.00013273,2]
[399837716,1766724640088,-500.22881181,0.00013273,2]
[399837718,1766724640099,-500.17451899,0.00013273,2]
[399837720,1766724640109,-500.78345836,0.00013273,2]
[399837722,1766724640119,-500.22574787,0.00013273,2]
[399837724,1766724640129,-823.0,0.00013405,2]
[399837726,1766724640140,-700.0,0.00013493,2]
[399837728,1766724640150,-1000.0,0.00013684,2]
[399837730,1766724640160,-244.0,0.00013684,2]
[399837732,1766724640173,-727.296088,0.00013699,2]
[399837734,1766724640184,-501.58622365,0.00013699,2]
[399837736,1766724640194,-500.0,0.00013699,2]
[399837738,1766724640203,-1000.0,0.00013821,2]
[399837740,1766724640213,-1269.4675246,0.00014142,2]
[399837742,1766724640223,-600.50592377,0.00014247,2]
[399837745,1766724640233,-367.49810174,0.00014321,2]
[399837746,1766724640243,-1500.0,0.00014368,2]
[399837749,1766724640253,-2935.13151204,0.00014386,2]
[399837751,1766724640263,-700.0,0.00014457,2]
[399837753,1766724640273,-231.0,0.00014478,2]
[399837755,1766724640283,-283.256492,0.00014618,2]
[399837756,1766724640293,-993.0,0.00014745,2]
[399837759,1766724640304,-1041.66666667,0.00014898,2]
[399837761,1766724640313,-171.80350721,0.00014916,2]
[399837763,1766724640323,-700.0,0.00014937,2]
[399837765,1766724640333,-500.0,0.00015037,2]
[399837767,1766724640343,-1000.0,0.00015052,2]
[399837769,1766724640353,-492.0,0.00015052,2]
[399837771,1766724640363,-700.0,0.00015243,2]
[399837773,1766724640373,-166.66666667,0.000154,2]
[399837775,1766724640385,-2935.13151204,0.00015598,2]
[399837777,1766724640395,-151.0,0.000157,2]
[399837779,1766724640404,-40919.73461324,0.00015998,2]
[399837781,1766724640414,-700.0,0.00016029,2]
[399837783,1766724640424,-258.0,0.00016478,2]
[399837785,1766724640433,-1000.0,0.00016557,2]
[399837787,1766724640445,-791.0,0.00016557,2]
[399837789,1766724640456,-151.0,0.000166,2]
[399837791,1766724640466,-15099.4828037,0.00016761,2]
[399837794,1766724640477,-2935.13151204,0.00016811,2]
[399837796,1766724640488,-151.0,0.000175,2]
[399837798,1766724640497,-500.0,0.00017833,2]
[399837800,1766724640507,-151.0,0.00017833,2]
[399837802,1766724640516,-507.75336872,0.00017833,2]
[399837804,1766724640526,-151.0,0.00017833,2]
[399837806,1766724640536,-151.0,0.00017833,2]
[399837807,1766724640546,-151.0,0.00017833,2]
[399837810,1766724640556,-151.0,0.00017833,2]
[399837812,1766724640566,-151.0,0.00017833,2]
[399837814,1766724640576,-151.0,0.00017833,2]
[399837816,1766724640586,-151.0,0.00017833,2]
[399837818,1766724640595,-151.0,0.00017833,2]
[399837820,1766724640605,-151.0,0.00017833,2]
[399837822,1766724640615,-151.0,0.00017833,2]
[399837824,1766724640624,-151.0,0.00017833,2]
[399837826,1766724640634,-151.0,0.00017833,2]
[399837828,1766724640644,-151.0,0.00017833,2]
[399837830,1766724640654,-700.0,0.00017973,2]
[399837832,1766724640664,-58141.2324244,0.00018,2]
[399837834,1766724640674,-2935.13151204,0.00018023,2]
[399837836,1766724640683,-700.0,0.00018123,2]
[399837838,1766724640693,-700.0,0.00018145,2]
[399837840,1766724640702,-1000.0,0.00018213,2]
[399837842,1766724640712,-1000.0,0.00018213,2]
[399837844,1766724640722,-151.0,0.000184,2]
[399837846,1766724640732,-285.0,0.00018478,2]
[399837848,1766724640742,-1369.981,0.00018518,2]
[399837850,1766724640752,-633.0,0.00018518,2]
[399837852,1766724640762,-5000.0,0.00019178,2]
[399837854,1766724640772,-5000.0,0.00019178,2]
[399837856,1766724640781,-700.0,0.00019285,2]
[399837858,1766724640791,-151.0,0.000193,2]
[399837860,1766724640800,-1705.52092405,0.00019323,2]
[399837861,1766724640810,-450.32644813,0.00019323,2]
[399837862,1766724640820,-702.93144013,0.00019323,2]
[399837864,1766724640831,-1092.62601741,0.00019339,2]
[399837865,1766724640840,-168655.9740882,0.000198,2]
[399837867,1766724640851,-289.69,0.000199,2]
[399837868,1766724640860,-6046.16,0.000199,2]
[399837869,1766724640870,-267.28,0.000199,2]
[399837870,1766724640880,-1000.0,0.00020035,2]
[399837871,1766724640890,-1000.0,0.00020035,2]
[399837872,1766724640900,-579.0,0.00020035,2]
[399837873,1766724640910,-700.0,0.00020123,2]
[399837874,1766724640920,-727.296088,0.00020187,2]
[399837875,1766724640931,-151.0,0.000202,3]
[399837876,1766724640941,-271.4958262,0.00020312,2]
[399837877,1766724640951,-423.78801622,0.00020312,2]
[399837878,1766724640961,-700.0,0.00020347,2]
[399837879,1766724640972,-1068.08819253,0.00020469,2]
[399837880,1766724640983,-550.26646168,0.00020469,2]
[399837881,1766724640995,-312.0,0.00020478,2]
[399837882,1766724641005,-161.48599178,0.00020685,30]
[399837883,1766724641015,-161.48599177,0.00020685,30]
[399837884,1766724641027,-161.48599178,0.00020904,30]
[399837885,1766724641037,-161.48599177,0.00020904,30]
[399837886,1766724641047,-700.0,0.00021014,2]
[399837887,1766724641059,-500.0,0.00021023,2]
[399837888,1766724641070,-151.0,0.000211,3]
[399837889,1766724641080,-161.48599178,0.00021123,30]
[399837890,1766724641090,-161.48599177,0.00021123,30]
[399837891,1766724641100,-5000.0,0.00021329,2]
[399837892,1766724641111,-159.22,0.0002133,2]
[399837893,1766724641121,-183.75,0.0002133,2]
[399837894,1766724641132,-161.48599178,0.00021342,30]
[399837895,1766724641142,-161.48599177,0.00021342,30]
[399837896,1766724641153,-380.7233008,0.00021386,2]
[399837897,1766724641164,-163.87875765,0.00021386,2]
[399837898,1766724641175,-294.98176378,0.00021386,2]
[399837899,1766724641186,-524.41202449,0.00021386,2]
[399837900,1766724641196,-398.8140904,0.00021386,2]
[399837901,1766724641206,-1363.0,0.00021518,2]
[399837902,1766724641216,-633.0,0.00021518,2]
[399837903,1766724641228,-336.99869157,0.00021547,2]
[399837904,1766724641238,-161.48599178,0.00021562,30]
[399837905,1766724641248,-161.48599177,0.00021562,30]
[399837906,1766724641258,-777.0,0.000216,2]
[399837907,1766724641269,-700.0,0.00021723,2]
[399837908,1766724641280,-161.48599178,0.00021781,30]
[399837909,1766724641290,-161.48599177,0.00021781,30]
[399837910,1766724641300,-151.0,0.00022,4]
[399837911,1766724641311,-1000.0,0.00022038,10]
[399837912,1766724641321,-1000.0,0.00022038,10]
[399837913,1766724641331,-1000.0,0.00022038,10]
[399837914,1766724641342,-300.0,0.00022466,2]
[399837915,1766724641352,-339.0,0.00022478,2]
[399837916,1766724641362,-500.0,0.00022498,7]
[399837917,1766724641372,-700.0,0.00022782,2]
[399837918,1766724641382,-151.0,0.000229,5]
[399837919,1766724641392,-450.0,0.00023014,2]
[399837920,1766724641403,-700.0,0.00023139,2]
[399837921,1766724641413,-600.0,0.00023176,2]
[399837922,1766724641423,-167.72343987,0.0002323,120]
[399837923,1766724641433,-160.81402719,0.0002323,30]
[399837924,1766724641443,-166.66666666,0.0002323,30]
[399837925,1766724641453,-151.0,0.00023242,2]
[399837926,1766724641463,-700.0,0.00023246,2]
[399837927,1766724641474,-600.0,0.00023418,2]
[399837928,1766724641485,-600.0,0.00023562,2]
[399837929,1766724641496,-1561.17914415,0.00023659,2]
[399837930,1766724641506,-774.16270082,0.00023659,2]
[399837931,1766724641516,-151.0,0.000238,5]
[399837932,1766724641527,-69044.4015041,0.00024,30]
[399837933,1766724641537,-151.0,0.00024,2]
[399837934,1766724641547,-151.0,0.00024,2]
[399837935,1766724641557,-165.76046166,0.00024042,2]
[399837936,1766724641567,-700.0,0.00024095,2]
[399837937,1766724641578,-289.69,0.000241,7]
[399837938,1766724641588,-6046.16,0.000241,14]
[399837939,1766724641598,-267.28,0.000241,7]
[399837940,1766724641608,-425.05756062,0.0002411,2]
[399837941,1766724641619,-32728.24365442,0.00024142,2]
[399837942,1766724641635,-653.31695367,0.00024142,2]
[399837943,1766724641647,-1468.70121829,0.00024142,2]
[399837944,1766724641811,-1689.52987729,0.00024142,2]
[399837962,1766724646191,-5000.0,8.981e-05,2]
[399837963,1766724646202,-131944.96657108,0.00024142,2]
[399837964,1766724646211,-55301.70755184,0.00024142,2]
[399837966,1766724772940,-279.90893314,8.585e-05,2]
[399837969,1766724862943,-220.09106686,8.585e-05,2]
[399837970,1766724862967,-248.2164229,9.069e-05,2]
[399837971,1766724866849,-261.18354359,8.499e-05,2]
[399837972,1766724872407,-326.2278542,8.499e-05,2]
[399837973,1766724874231,-259.91451511,8.499e-05,2]
[399837974,1766724876551,-173.3121012,8.499e-05,2]
[399837975,1766724878644,-232.30181117,8.499e-05,2]
[399837976,1766724880384,-565.21,8.499e-05,2]
[399837977,1766724882342,-403.71627291,8.499e-05,2]
[399837978,1766724885041,-260.38076772,8.499e-05,2]
[399837979,1766724887208,-263.79218621,8.499e-05,2]
[399837980,1766724908044,-181.19329606,8.414e-05,2]
[399837981,1766724922963,-47.01828624,8.414e-05,2]
[399837982,1766724922987,-202.98171376,8.499e-05,2]
[399837983,1766724925385,-438.77518557,8.499e-05,2]
[399837984,1766724928396,-289.39420082,8.499e-05,2]
[399837985,1766724931851,-330.23063639,8.499e-05,2]
[399837986,1766724933473,-214.15,8.499e-05,2]
[399837987,1766724935139,-243.54589971,8.499e-05,2]
[399837988,1766724936611,-219.61038699,8.499e-05,2]
[399837989,1766724938668,-167.6658815,8.499e-05,2]
[399837990,1766724953582,-173.38551347,8.414e-05,2]
[399837991,1766724957067,-175.27605261,8.414e-05,2]
[399837992,1766724958656,-158.91394739,8.414e-05,2]
[399837993,1766724960837,-168.00078882,8.414e-05,2]
[399837994,1766724963168,-280.01611531,8.414e-05,2]
[399837995,1766724963194,-22.70513597,8.499e-05,2]
[399837996,1766724965191,-124.90190718,8.499e-05,2]
[399837997,1766724965216,-72.37684154,9.069e-05,2]
[399837998,1766724983472,-252.35879506,8.978e-05,2]
[399837999,1766724984226,-4747.64120494,8.978e-05,2]
[399838001,1766725178039,-193.41387737,8.888e-05,2]
[399838002,1766725222656,-555.09336433,8.711e-05,2]
[399838003,1766725226943,-465.00670394,8.711e-05,2]
[399838004,1766725229428,-423.52193153,8.711e-05,2]
[399838005,1766725234933,-288.30521601,8.711e-05,2]
[399838006,1766725240575,-300.0,8.711e-05,2]
[399838007,1766725243458,-475.60221233,8.711e-05,2]
[399838008,1766725247096,-300.77,8.711e-05,2]
[399838012,1766725358724,-242.81977826,8.711e-05,2]
[399838013,1766725360376,-389.68212,8.711e-05,2]
[399838014,1766725363357,-289.10183338,8.711e-05,2]
[399838015,1766725369207,-1201.75528407,8.711e-05,2]
[399838016,1766725372484,-68.34155615,8.711e-05,2]
[399838017,1766725372508,-231.65844385,8.799e-05,2]
[399838018,1766725390146,-300.0,8.711e-05,2]
[399838019,1766725582934,-377.72662556,8.624e-05,2]
[399838020,1766725585888,-240.03317121,8.624e-05,2]
[399838021,1766725680062,319.44,3.8e-06,2]
[399838022,1766725699919,170.71,7.663e-05,2]
[399838023,1766725772153,162.02,7.52e-05,2]
[399838024,1766725772536,202.52,8.058e-05,2]
[399838025,1766725772864,-364.44024174,8.453e-05,2]
[399838026,1766725807904,-274.63035213,8.368e-05,2]
[399838027,1766725810165,-226.96739819,8.284e-05,2]
[399838028,1766725813357,-298.96227438,8.284e-05,2]
[399838029,1766725813383,-143.85750388,8.368e-05,2]
[399838054,1766725832350,-398.0,8.368e-05,2]
[399838061,1766725838381,-4183.51214399,8.368e-05,2]
[399838062,1766725838394,-243.03,8.595e-05,2]
[399838063,1766725838405,-283.53,9.132e-05,2]
[399838064,1766725838415,-324.04,9.669e-05,2]
[399838065,1766725838426,-364.54,0.00010206,2]
[399838066,1766725838437,-177.0,0.00010496,2]
[399838067,1766725838448,-405.05,0.00010743,2]
[399838068,1766725838459,-581.8485109,0.00011055,2]
[399838069,1766725838472,-63.39388097,0.00011055,2]
[399838070,1766725838482,-204.0,0.00012496,2]
[399838071,1766725838493,-400.0,0.0001278,2]
[399838072,1766725838503,-500.0,0.00013273,2]
[399838073,1766725838513,-483.51126369,0.00013273,2]
[399838074,1766725838523,-300.0,0.00013674,2]
[399838075,1766725838533,-300.0,0.00013674,2]
[399838076,1766725838544,-300.0,0.00013674,2]
[399838077,1766725838555,-300.0,0.00013674,2]
[399838078,1766725838566,-300.0,0.00013674,2]
[399838079,1766725838576,-300.0,0.00013674,2]
[399838080,1766725838586,-300.0,0.00013674,2]
[399838081,1766725838597,-300.0,0.00013674,2]
[399838082,1766725838607,-300.0,0.00013674,2]
[399838083,1766725838617,-300.0,0.00013674,2]
[399838084,1766725838628,-300.0,0.00013674,2]
[399838085,1766725838639,-300.0,0.00013674,2]
[399838086,1766725838650,-300.0,0.00013674,2]
[399838087,1766725838660,-300.0,0.00013674,2]
[399838088,1766725838670,-300.0,0.00013674,2]
[399838089,1766725838680,-550.84116012,0.00013821,2]
[399838090,1766725838691,-600.0,0.00013946,2]
[399838091,1766725838702,-414.34695015,0.00014087,2]
[399838092,1766725838712,-231.0,0.00014496,2]
[399838093,1766725838722,-500.0,0.000152,2]
[399838094,1766725838733,-22017.5225388,0.00015204,2]
[399838095,1766725838743,-5710.80248151,0.00015241,2]
[399838096,1766725838754,-720.0,0.00015341,2]
[399838097,1766725838768,-333.33333333,0.000154,2]
[399838098,1766725838778,-258.0,0.00016496,2]
[399838099,1766725838788,-864.0,0.00016875,2]
[399838100,1766725838798,-500.0,0.000169,2]
[399838101,1766725838808,-500.0,0.00017,2]
[399838102,1766725838819,-5710.80248146,0.00017805,2]
[399838103,1766725838829,-285.0,0.00018496,2]
[399838104,1766725838839,-142.95783115,0.00018563,2]
[399838105,1766725838853,-857.04216885,0.00018563,2]
[399838106,1766725838863,-2161.0,0.00018886,2]
[399838107,1766725838873,-193.1772,0.00019636,2]
[399838108,1766725838884,-150.619,0.00019637,2]
[399838109,1766725838893,-150.561,0.00019637,2]
[399838110,1766725838903,-231.83,0.00019637,2]
[399838111,1766725838914,-505.44072389,0.0001978,2]
[399838112,1766725838926,-466.34616607,0.0001978,2]
[399838113,1766725838939,-51.53388291,0.0001978,2]
[399838114,1766725838948,-250.46611709,0.0002037,2]
[399838115,1766725838961,-3263.64102344,0.0002037,2]
[399838186,1766725840899,-3e-08,0.00018413,2]
[399838188,1766725840912,-467.91884204,0.00018413,2]
[399838433,1766725846452,-573.7478246,0.00018413,2]
[399838434,1766725846463,-2196.69534093,0.0002037,2]
[399838435,1766725846474,-1000.0,0.00020419,2]
[399838436,1766725846483,-244.0,0.00020419,2]
[399838437,1766725846494,-312.0,0.00020496,2]
[399838438,1766725846505,-2091.693983,0.00021,2]
[399838439,1766725846515,-159.22,0.00021809,2]
[399838440,1766725846524,-2161.0,0.00021886,2]
[399838441,1766725846534,-1000.0,0.00022461,10]
[399838442,1766725846544,-492.0,0.00022461,10]
[399838443,1766725846555,-339.0,0.00022496,2]
[399838444,1766725846564,-5710.80248146,0.00022934,2]
[399838445,1766725846574,-174.0,0.00023194,120]
[399838446,1766725846585,-178.0,0.000232,120]
[399838447,1766725846594,-193.4138777,0.00023281,2]
[399838448,1766725846604,-39926.38085139,0.000235,2]
[399838449,1766725848915,-10000.01,0.000235,2]
[399838450,1766725852271,-416.0,0.00020365,2]
[399838451,1766725852303,-416.0,0.00023365,2]
[399838452,1766725852355,-8336.01,0.000235,2]
[399838453,1766725852651,-10000.01,0.000235,2]
[399838454,1766725855236,-10000.01,0.000235,2]
[399838455,1766725855327,-10000.01,0.000235,2]